bitfinex/quotes_ETHUSD_20260110
["timestamp","ask_amount","ask_price","bid_price","bid_amount"]
[1768025443204,0.90203227,3087.6,3087.5,0.001]
[1768025448294,0.00056039,3087.7,3087.5,0.001]
[1768025468262,0.94067652,3087.7,3087.5,0.001]
[1768025468633,0.94011613,3087.5,3087.2,0.00086533]
[1768025469263,0.94067652,3087.7,3087.2,0.00086533]
[1768025471389,4.17935703,3087.7,3087.2,0.00086533]
[1768025471667,0.94011613,3087.6,3087.2,0.00086533]
[1768025474470,0.00056039,3087.7,3087.2,0.00086533]
[1768025474672,0.41812282,3087.6,3087.2,0.00086533]
[1768025477861,0.41812282,3087.6,3087.5,0.001]
[1768025478060,0.41812282,3087.6,3087.2,0.00086533]
[1768025478745,4.59700221,3087.6,3087.2,0.00086533]
[1768025478949,4.59700221,3087.6,3087.2,0.25586533]
[1768025479149,0.45975626,3087.5,3087.2,0.25586533]
[1768025498425,1.40939218,3087.5,3087.2,0.25586533]
[1768025498723,0.45975626,3087.5,3087.2,0.25586533]
[1768025507216,0.00056039,3087.7,3087.2,0.25586533]
[1768025515355,0.00056039,3087.7,3087.5,0.001]
[1768025515516,0.00056039,3087.7,3087.2,0.25586533]
[1768025527293,0.00056039,3087.7,3087.5,0.001]
[1768025527493,0.00056039,3087.7,3087.2,0.25586533]
[1768025527793,0.75005311,3087.7,3087.2,0.25586533]
[1768025529062,3.98873118,3087.7,3087.2,0.25586533]
[1768025531938,4.97468568,3087.7,3087.2,0.25586533]
[1768025539186,4.97468568,3087.7,3087.5,0.001]
[1768025539390,4.97468568,3087.7,3087.2,0.00086533]
[1768025539561,0.49766857,3087.6,3087.2,0.00086533]
[1768025544399,0.49766857,3087.6,3087.2,0.90586492]
[1768025550801,0.49766857,3087.6,3087.5,0.001]
[1768025550964,0.49766857,3087.6,3087.2,0.90586492]
[1768025552297,0.49766857,3087.6,3087.2,0.00086533]
[1768025552502,0.44863997,3087.5,3087.2,0.00086533]
[1768025556992,0.75005311,3087.7,3087.2,0.9193909]
[1768025558500,1.72916962,3087.7,3087.2,0.00086533]
[1768025558795,0.97911651,3087.6,3087.2,0.00086533]
[1768025560397,0.75005311,3087.7,3087.2,0.00086533]
[1768025560695,0.00056039,3087.7,3087.2,0.00086533]
[1768025563500,0.00056039,3087.7,3087.5,0.001]
[1768025563704,0.00056039,3087.7,3087.2,0.9193909]
[1768025567011,0.00056039,3087.7,3087.2,0.9193909]
[1768025567615,0.00056039,3087.7,3087.2,0.00086533]
[1768025567915,0.06541965,3087.7,3087.2,0.00086533]
[1768025568080,0.75237451,3087.6,3087.2,0.00086533]
[1768025568400,1.73149102,3087.6,3087.2,0.00086533]
[1768025571002,3.23886639,3087.5,3087.2,0.00086533]
[1768025583233,4.16195141,3087.5,3087.2,0.00086533]
[1768025583523,7.4008178,3087.5,3087.2,0.00086533]
[1768025583715,0.81531923,3087.4,3087.1,0.001]
[1768025583885,0.81531923,3087.4,3086.8,0.001]
[1768025584611,0.81531923,3087.4,3086.8,0.98443858]
[1768025586589,4.05436932,3087.4,3086.8,0.98443858]
[1768025587629,4.05436932,3087.4,3087.1,0.001]
[1768025587833,0.40543693,3087.3,3087.1,0.001]
[1768025609860,3.64452844,3087.3,3087.1,0.001]
[1768025615254,3.64452844,3087.3,3086.8,1.95649991]
[1768025618679,3.2409713,3087.4,3086.8,1.95649991]
[1768025623681,3.2409713,3087.4,3087.1,0.001]
[1768025629181,6.4799426,3087.4,3086.8,1.95649991]
[1768025629782,6.4799426,3087.4,3086.8,0.97306133]
[1768025629783,7.3938454,3087.4,3086.8,0.97306133]
[1768025634986,4.1548741,3087.4,3086.8,0.97306133]
[1768025636688,4.1548741,3087.4,3087.1,0.001]
[1768025636991,0.73937663,3087.3,3086.8,0.97306133]
[1768025637160,0.002,3087.1,3086.8,0.97306133]
[1768025637357,0.002,3087.1,3086.8,1.93798369]
[1768025639263,0.002,3087.1,3086.8,0.97306133]
[1768025643194,0.002,3087.1,3086.8,1.93201693]
[1768025649112,0.002,3087.1,3086.9,0.9589556]
[1768025650105,0.002,3087.1,3086.9,1.93097599]
[1768025660231,0.002,3087.1,3086.9,0.9589556]
[1768025664844,0.002,3087.1,3086.8,0.9599556]
[1768025666434,0.002,3087.1,3086.9,0.9589556]
[1768025669942,0.002,3087.1,3086.8,0.9599556]
[1768025681563,0.002,3087.1,3086.8,0.001]
[1768025681964,0.002,3087.1,3086.9,0.94800906]
[1768025708326,0.90663324,3087.0,3086.8,0.001]
[1768025708816,0.002,3087.1,3086.8,0.001]
[1768025721178,0.002,3087.1,3086.8,0.97302039]
[1768025737503,0.002,3087.1,3086.8,0.001]
[1768025738326,0.97047202,3087.0,3086.8,0.001]
[1768025738608,0.002,3087.1,3086.8,0.001]
[1768025742921,0.32610762,3087.1,3086.8,0.001]
[1768025743214,0.97247202,3087.1,3086.8,0.001]
[1768025747311,4.21182182,3087.1,3086.8,0.001]
[1768025748945,3.2413498,3087.1,3086.8,0.001]
[1768025750141,0.002,3087.1,3086.8,0.001]
[1768025761668,0.42316963,3087.1,3086.8,0.001]
[1768025761966,0.42316963,3087.1,3086.5,0.0008088]
[1768025762168,0.42316963,3087.1,3086.5,0.97354828]
[1768025762369,0.97220939,3087.0,3086.5,0.97354828]
[1768025762662,0.002,3087.4,3086.5,0.97354828]
[1768025762663,3.08102342,3087.5,3086.8,0.97273948]
[1768025762867,0.40470844,3087.4,3086.8,0.97273948]
[1768025763639,0.97208968,3087.5,3086.8,0.97273948]
[1768025763836,4.20485779,3087.6,3086.8,0.97273948]
[1768025764063,5.17691597,3087.6,3086.8,0.97273948]
[1768025767098,4.21172036,3087.6,3086.8,0.97273948]
[1768025768402,0.002,3087.3,3086.8,0.97273948]
[1768025768614,0.002,3087.3,3086.9,0.90186145]
[1768025773713,0.002,3087.3,3086.7,1.87391963]
[1768025773914,0.96243869,3087.3,3086.7,0.97205818]
[1768025776250,4.20152928,3087.3,3086.7,0.97205818]
[1768025777341,0.96243869,3087.3,3086.7,0.97205818]
[1768025779036,4.20151684,3087.3,3086.7,0.97205818]
[1768025779834,0.96243869,3087.3,3086.7,0.97205818]
[1768025780133,4.20151921,3087.3,3086.7,0.97205818]
[1768025780830,4.20151921,3087.3,3087.0,0.001]
[1768025782866,7.44059973,3087.3,3087.0,0.001]
[1768025783345,4.20151921,3087.3,3086.6,0.255]
[1768025783546,7.44059973,3087.3,3086.6,0.255]
[1768025784152,7.44059973,3087.3,3086.5,0.0008088]
[1768025784153,0.96043869,3087.2,3086.5,0.0008088]
[1768025784549,0.96043869,3087.1,3086.5,0.0008088]
[1768025785246,0.96124749,3086.9,3086.2,0.256]
[1768025787156,3.23960088,3086.8,3086.2,0.256]
[1768025788666,3.23960088,3086.8,3086.2,1.15786145]
[1768025790474,4.20078878,3086.9,3086.2,1.15786145]
[1768025792669,4.20078878,3086.9,3086.5,0.001]
[1768025792875,0.74401798,3086.8,3086.2,1.15786145]
[1768025793076,4.20078878,3086.9,3086.2,1.15786145]
[1768025794547,7.44033007,3086.9,3086.2,1.15786145]
[1768025794773,4.20078878,3086.9,3086.2,1.15786145]
[1768025794975,7.44033007,3086.9,3086.2,1.15786145]
[1768025795494,7.44033007,3086.9,3086.2,0.001]
[1768025795495,0.91458247,3086.8,3086.2,0.001]
[1768025795678,1.65861548,3086.8,3086.2,0.001]
[1768025796393,0.74403301,3086.8,3086.2,0.001]
[1768025796695,1.65861548,3086.8,3086.1,0.9466184]
[1768025796897,7.39420405,3086.6,3085.9,0.001]
[1768025797183,0.91458247,3086.5,3085.9,0.001]
[1768025799465,3.24002073,3086.4,3085.9,0.001]
[1768025800480,6.48004146,3086.4,3085.9,0.001]
[1768025800653,0.73946239,3086.3,3085.9,0.001]
[1768025801787,3.97960804,3086.3,3085.9,0.001]
[1768025808616,3.97960804,3086.3,3085.7,0.9466184]
[1768025810204,3.24014565,3086.3,3085.7,0.9466184]
[1768025810508,4.15472812,3086.3,3085.6,1.20385869]
[1768025813794,0.95786163,3086.2,3085.6,0.25580816]
[1768025814820,3.24014565,3086.3,3085.6,0.25580816]
[1768025817338,6.4802913,3086.3,3085.9,0.001]
[1768025817543,6.4802913,3086.3,3085.6,0.25580816]
[1768025817544,0.74381529,3086.2,3085.6,0.25580816]
[1768025817719,0.002,3086.0,3085.6,0.25580816]
[1768025818238,0.002,3086.0,3085.6,1e-08]
[1768025818443,0.00280816,3086.0,3085.5,0.001]
[1768025821143,0.00280816,3086.0,3085.5,0.94905053]
[1768025822619,0.00280816,3086.0,3085.6,0.94805053]
[1768025823123,0.002,3086.3,3086.0,0.94805053]
[1768025826035,0.002,3086.3,3085.8,1.22602821]
[1768025830343,0.002,3086.3,3085.9,0.001]
[1768025830770,0.002,3086.0,3085.9,0.001]
[1768025846516,0.002,3086.0,3085.8,0.255]
[1768025851845,0.002,3086.0,3085.6,0.00080824]
[1768025853550,3.24244069,3086.0,3085.6,0.00080824]
[1768025853754,0.74750894,3085.9,3085.6,0.00080824]
[1768025856170,3.98806087,3085.9,3085.6,0.00080824]
[1768025856379,0.74750894,3085.9,3085.6,0.00080824]
[1768025864833,0.002,3086.0,3085.6,0.00080824]
[1768025867238,0.002,3086.0,3085.9,0.001]
[1768025867452,0.002,3086.0,3085.6,0.92046485]
[1768025873959,0.002,3086.0,3085.6,0.00080824]
[1768025879193,0.002,3086.0,3085.9,0.001]
[1768025879496,0.32622307,3086.0,3085.6,0.00080824]
[1768025879700,0.002,3086.0,3085.6,0.00080824]
[1768025880793,0.002,3086.0,3085.6,0.98231801]
[1768025885003,0.002,3086.0,3085.7,0.98989836]
[1768025887816,0.002,3086.3,3085.8,0.98989836]
[1768025890715,0.002,3086.3,3086.0,0.001]
[1768025902720,0.97139018,3086.3,3086.0,0.001]
[1768025902893,1.71671981,3086.3,3086.0,0.001]
[1768025905591,4.95687249,3086.3,3086.0,0.001]
[1768025908037,1.71671981,3086.3,3086.0,0.001]
[1768025914256,4.95686072,3086.3,3086.0,0.001]
[1768025915157,1.71671981,3086.3,3086.0,0.001]
[1768025916061,4.95686136,3086.3,3086.0,0.001]
[1768025916461,0.90524078,3086.2,3086.0,0.001]
[1768025918235,0.002,3086.3,3086.0,0.001]
[1768025918435,0.90524078,3086.2,3086.0,0.001]
[1768025919265,3.2421526,3086.3,3086.0,0.001]
[1768025919438,4.88632803,3086.3,3086.0,0.001]
[1768025925741,0.90524078,3086.2,3085.6,0.00080824]
[1768025926163,0.002,3086.0,3085.6,0.00080824]
[1768025937985,0.002,3086.0,3085.9,0.001]
[1768025938172,0.002,3086.0,3085.6,0.00080824]
[1768025938571,0.91269924,3085.9,3085.2,0.95906694]
[1768025938816,0.91269924,3085.9,3085.2,0.001]
[1768025938963,0.91269924,3085.9,3085.2,0.95906694]
[1768025941158,4.15329061,3085.9,3085.2,0.95906694]
[1768025942275,7.39388198,3085.9,3085.2,0.95906694]
[1768025942476,7.39388198,3085.9,3085.2,0.001]
[1768025942477,1.69384311,3085.8,3085.2,0.001]
[1768025942985,0.91269924,3085.7,3085.2,0.001]
[1768025943490,4.15348159,3085.7,3085.2,0.001]
[1768025945796,0.91269924,3085.7,3085.2,0.001]
[1768025946277,1.40615215,3085.7,3085.2,0.001]
[1768025946664,4.64691725,3085.7,3085.2,0.001]
[1768025947885,0.95305379,3085.6,3085.2,0.001]
[1768025948206,3.46858605,3085.4,3084.9,0.001]
[1768025948377,4.42163984,3085.4,3084.9,0.001]
[1768025948562,1.39521777,3085.3,3084.9,0.001]
[1768025948758,1.39521777,3085.3,3084.6,0.92996411]
[1768025949211,1.39521777,3085.3,3084.4,0.93077371]
[1768025949367,0.95305379,3085.2,3084.4,0.93077371]
[1768025950089,3.24138601,3085.1,3084.4,0.93077371]
[1768025950297,6.48277202,3085.1,3084.4,0.93077371]
[1768025950780,0.95305379,3085.0,3084.4,0.0008096]
[1768025950981,0.0008096,3084.8,3084.2,0.93096411]
[1768025951379,0.0008096,3084.8,3084.3,0.92996411]
[1768025952678,0.0008096,3084.8,3084.2,0.256]
[1768025953478,0.0008096,3084.8,3083.9,0.92996411]
[1768025953675,0.0008096,3084.8,3083.8,3.24264855]
[1768025953676,0.0008096,3084.8,3084.0,0.92996411]
[1768025954318,3.24251084,3084.8,3084.0,0.92996411]
[1768025962215,3.24251084,3084.8,3084.3,0.002]
[1768025965593,0.95305379,3084.6,3084.3,0.002]
[1768025965798,1.37254345,3084.5,3084.3,0.002]
[1768025965999,1.37254345,3084.5,3084.0,0.002]
[1768025969503,0.95305379,3084.4,3084.0,0.002]
[1768025970128,3.24222676,3084.3,3084.0,0.002]
[1768025970334,4.19528055,3084.3,3084.0,0.002]
[1768025971134,4.19528055,3084.3,3083.6,1.18496411]
[1768025971538,4.19528055,3084.3,3083.6,0.255]
[1768025971712,0.74374281,3084.2,3083.6,0.255]
[1768025972657,3.98613244,3084.2,3083.6,0.255]
[1768025974450,3.98613244,3084.2,3083.9,0.002]
[1768025977445,0.99876559,3084.1,3083.6,0.255]
[1768025978449,3.98613244,3084.2,3083.6,0.255]
[1768025978655,3.96532656,3084.1,3083.6,0.255]
[1768025981439,4.96409215,3084.1,3083.6,0.255]
[1768025983634,3.96532656,3084.1,3083.6,0.255]
[1768025987056,3.96532656,3084.1,3083.9,0.002]
[1768025987255,0.001,3083.9,3083.6,0.255]
[1768025995174,0.001,3083.9,3083.6,1.22248068]
[1768026002093,0.001,3084.5,3083.8,0.96748068]
[1768026006152,0.90876405,3084.5,3083.6,4.45978903]
[1768026007087,0.90876405,3084.5,3083.7,0.96182656]
[1768026007288,0.90876405,3084.5,3083.5,0.00280768]
[1768026008689,0.90776405,3084.3,3083.5,0.00280768]
[1768026010653,0.90776405,3084.1,3083.5,0.00280768]
[1768026010856,0.90776405,3084.1,3083.9,0.002]
[1768026011083,0.41500959,3084.0,3083.9,0.002]
[1768026011269,1.32277364,3084.0,3083.9,0.002]
[1768026011983,0.41500959,3084.0,3083.9,0.002]
[1768026020690,0.001,3084.2,3083.9,0.002]
[1768026025607,0.90876405,3084.2,3083.9,0.002]
[1768026026697,0.001,3084.2,3083.9,0.002]
[1768026041029,0.001,3084.2,3083.9,0.90200533]
[1768026047824,0.001,3084.2,3083.9,0.002]
[1768026060825,0.4171181,3084.2,3083.9,0.002]
[1768026062038,3.65948234,3084.2,3083.9,0.002]
[1768026062457,3.65948234,3084.2,3083.4,0.002]
[1768026062458,0.91803376,3084.1,3083.4,0.002]
[1768026062608,6.90184658,3084.2,3083.0,1.15570085]
[1768026062609,0.91884144,3083.9,3083.0,1.15570085]
[1768026063123,0.91884144,3083.9,3083.0,1.15594101]
[1768026063359,0.91884144,3083.9,3083.0,0.90094101]
[1768026064137,4.14441097,3083.8,3083.0,0.90094101]
[1768026064532,0.90165853,3083.7,3083.0,0.90094101]
[1768026065666,4.1446213,3083.6,3082.9,0.00080608]
[1768026065865,4.88333764,3083.6,3082.9,0.00080608]
[1768026066437,0.90165853,3083.5,3082.9,0.00080608]
[1768026068045,4.14475093,3083.5,3082.9,0.00080608]
[1768026069367,0.73871634,3083.6,3082.9,0.9258057]
[1768026069660,0.90165853,3083.7,3082.9,0.9258057]
[1768026069963,0.90246621,3083.9,3082.9,0.9258057]
[1768026070144,0.255,3083.7,3082.9,0.9258057]
[1768026070329,3.24281761,3083.8,3082.9,0.9258057]
[1768026070530,3.24281761,3083.8,3083.0,0.92499962]
[1768026071036,4.40015696,3083.9,3083.0,0.92499962]
[1768026071661,0.001,3083.5,3083.0,0.92499962]
[1768026083349,0.001,3083.2,3083.0,0.92499962]
[1768026083679,0.001,3083.5,3083.0,0.92499962]
[1768026083841,0.001,3083.5,3083.1,0.92499962]
[1768026085271,0.001,3083.5,3082.9,0.9258057]
[1768026089478,3.24351152,3083.9,3083.3,0.92499962]
[1768026089479,0.00080768,3083.9,3083.3,0.92499962]
[1768026091762,0.00080768,3083.9,3083.1,0.92499962]
[1768026091966,0.90246621,3083.9,3083.1,0.92499962]
[1768026095483,0.001,3083.6,3083.1,0.92499962]
[1768026100395,0.001,3083.6,3083.2,0.93262434]
[1768026104764,0.001,3083.6,3083.3,0.93262434]
[1768026107269,0.001,3083.6,3083.4,0.002]
[1768026145670,0.001,3083.6,3083.4,0.94377411]
[1768026146266,0.001,3083.6,3083.4,0.002]
[1768026159147,0.001,3083.6,3083.4,0.9894003]
[1768026166891,0.001,3083.6,3083.4,0.002]
[1768026169007,0.95522998,3083.6,3083.4,0.002]
[1768026181631,0.001,3083.6,3083.4,0.002]
[1768026186316,0.001,3083.6,3083.4,0.97481554]
[1768026188340,0.001,3083.6,3083.4,0.002]
[1768026195141,0.001,3083.6,3083.4,0.97481554]
[1768026200348,0.001,3083.6,3083.4,1.39663238]
[1768026200555,0.001,3083.6,3083.4,0.97481554]
[1768026211362,0.00080768,3083.9,3083.5,0.97281554]
[1768026211765,0.00080768,3083.9,3083.4,4.19181719]
[1768026215072,0.00080768,3083.9,3083.4,7.43499031]
[1768026215583,0.00080768,3083.9,3083.5,0.95849365]
[1768026217379,0.00080768,3083.9,3083.6,3.24296277]
[1768026221285,0.00080768,3083.9,3083.5,3.24305839]
[1768026222382,0.94916578,3083.9,3083.5,3.24305839]
[1768026223789,0.00080768,3083.9,3083.5,3.24305839]
[1768026224083,0.9493581,3084.2,3083.5,3.24386615]
[1768026224386,0.30360506,3084.1,3083.6,3.24292764]
[1768026224557,0.9493581,3084.2,3083.6,3.24292764]
[1768026224764,0.30360112,3084.1,3083.6,3.24292764]
[1768026224963,0.001,3084.2,3083.6,3.24292764]
[1768026225489,0.001,3084.2,3083.5,4.20232432]
[1768026225677,0.9493581,3084.2,3083.5,4.20232432]
[1768026227085,0.9493581,3084.2,3083.5,0.00080776]
[1768026231182,1.26011199,3084.1,3083.5,0.00080776]
[1768026231389,0.9565044,3084.1,3083.5,0.00080776]
[1768026235592,0.9565044,3084.1,3083.8,0.002]
[1768026241377,1.26051342,3084.0,3083.8,0.002]
[1768026241688,0.9565044,3084.0,3083.8,0.002]
[1768026242200,0.9575044,3084.2,3083.8,0.002]
[1768026242367,1.26051332,3084.1,3083.8,0.002]
[1768026242568,0.30400892,3084.0,3083.8,0.002]
[1768026242800,0.9565044,3084.1,3083.8,0.002]
[1768026242967,0.30400912,3084.0,3083.8,0.002]
[1768026243298,0.92048991,3084.2,3083.8,0.002]
[1768026243600,0.30401029,3084.1,3083.8,0.002]
[1768026243905,0.30401029,3084.0,3083.8,0.002]
[1768026244068,0.92048991,3084.2,3083.8,0.002]
[1768026244269,0.30401004,3084.1,3083.8,0.002]
[1768026244563,0.30401004,3084.0,3083.8,0.002]
[1768026244766,0.92048991,3084.2,3083.8,0.002]
[1768026244979,0.30401057,3084.1,3083.8,0.002]
[1768026245196,0.30401057,3084.0,3083.8,0.002]
[1768026245404,0.92048991,3084.2,3083.8,0.002]
[1768026245700,0.30401138,3084.1,3083.8,0.002]
[1768026245870,0.30401138,3084.0,3083.8,0.002]
[1768026246071,0.92048991,3084.2,3083.8,0.002]
[1768026246373,0.30401119,3084.1,3083.8,0.002]
[1768026246734,0.30401119,3084.0,3083.8,0.002]
[1768026246869,0.92048991,3084.2,3083.8,0.002]
[1768026247068,0.30401137,3084.1,3083.8,0.002]
[1768026247303,0.30401137,3084.0,3083.8,0.002]
[1768026247492,0.92048991,3084.2,3083.8,0.002]
[1768026247672,0.30401182,3084.1,3083.8,0.002]
[1768026247970,0.30401182,3084.0,3083.8,0.002]
[1768026248169,0.92048991,3084.2,3083.8,0.002]
[1768026248408,0.30401271,3084.1,3083.8,0.002]
[1768026248583,0.30401271,3084.0,3083.8,0.002]
[1768026248903,0.001,3084.2,3083.8,0.002]
[1768026249216,0.30401188,3084.1,3083.8,0.002]
[1768026249504,0.30401188,3084.0,3083.8,0.002]
[1768026249667,0.001,3084.2,3083.8,0.002]
[1768026249866,0.30401319,3084.1,3083.8,0.002]
[1768026250064,0.30401319,3084.0,3083.8,0.002]
[1768026250293,0.001,3084.2,3083.8,0.002]
[1768026250508,0.30401522,3084.1,3083.8,0.002]
[1768026250823,0.30401522,3084.0,3083.8,0.002]
[1768026251027,0.001,3084.2,3083.8,0.002]
[1768026251239,0.3040152,3084.1,3083.8,0.002]
[1768026251399,0.91948991,3084.0,3083.8,0.002]
[1768026252346,0.001,3084.2,3083.8,0.97261489]
[1768026252636,0.30400742,3084.1,3083.8,0.002]
[1768026252932,0.001,3084.2,3083.8,0.002]
[1768026253228,0.30400684,3084.1,3083.8,0.002]
[1768026253527,0.001,3084.2,3083.8,0.002]
[1768026253729,0.30399961,3084.1,3083.8,0.002]
[1768026253928,0.001,3084.2,3083.8,0.002]
[1768026254253,0.30399958,3084.1,3083.8,0.97261489]
[1768026254433,0.001,3084.2,3083.8,0.97261489]
[1768026254730,0.30399438,3084.1,3083.8,0.002]
[1768026254919,0.001,3084.2,3083.8,0.002]
[1768026255109,0.30398811,3084.1,3083.8,0.002]
[1768026255312,0.001,3084.2,3083.8,0.002]
[1768026255496,0.30398154,3084.1,3083.8,0.002]
[1768026255700,0.001,3084.2,3083.8,0.002]
[1768026255901,0.3039815,3084.1,3083.8,0.002]
[1768026256103,0.001,3084.2,3083.8,0.002]
[1768026256333,0.30397716,3084.1,3083.8,0.002]
[1768026256513,0.001,3084.2,3083.8,0.002]
[1768026256712,0.30397566,3084.1,3083.8,0.002]
[1768026256924,0.001,3084.2,3083.8,0.002]
[1768026257234,0.30397509,3084.1,3083.8,0.002]
[1768026257404,0.001,3084.2,3083.8,0.002]
[1768026257604,0.30397012,3084.1,3083.8,0.002]
[1768026257815,0.001,3084.2,3083.8,0.002]
[1768026258019,0.30397056,3084.1,3083.8,0.002]
[1768026258201,0.001,3084.2,3083.8,0.002]
[1768026258395,0.30396689,3084.1,3083.8,0.002]
[1768026258622,0.001,3084.2,3083.8,0.002]
[1768026258823,0.30396669,3084.1,3083.8,0.002]
[1768026259124,0.001,3084.2,3083.8,0.002]
[1768026259325,0.30396483,3084.1,3083.8,0.002]
[1768026259503,0.001,3084.2,3083.8,0.002]
[1768026259696,0.30396377,3084.1,3083.8,0.002]
[1768026259924,0.001,3084.2,3083.8,0.002]
[1768026260111,0.30396373,3084.1,3083.8,0.002]
[1768026260323,0.001,3084.2,3083.8,0.002]
[1768026260638,0.3039611,3084.1,3083.8,0.002]
[1768026260806,0.001,3084.2,3083.8,0.002]
[1768026261006,0.30396113,3084.1,3083.8,0.002]
[1768026261235,0.001,3084.2,3083.8,0.002]
[1768026261540,0.30396416,3084.1,3083.8,0.002]
[1768026261703,0.001,3084.2,3083.8,0.002]
[1768026261902,0.30396435,3084.1,3083.8,0.002]
[1768026262106,0.001,3084.2,3083.8,0.002]
[1768026262436,0.30396351,3084.1,3083.8,0.002]
[1768026262614,0.001,3084.2,3083.8,0.002]
[1768026262810,0.30396765,3084.1,3083.8,0.002]
[1768026263015,0.001,3084.2,3083.8,0.002]
[1768026263216,0.30396726,3084.1,3083.8,0.002]
[1768026263415,0.001,3084.2,3083.8,0.002]
[1768026263638,0.30396681,3084.1,3083.8,0.002]
[1768026263840,0.001,3084.2,3083.8,0.002]
[1768026264028,0.30396701,3084.1,3083.8,0.002]
[1768026264328,0.001,3084.2,3083.8,0.002]
[1768026264517,0.30396709,3084.1,3083.8,0.002]
[1768026264720,0.001,3084.2,3083.8,0.002]
[1768026264903,0.30389587,3084.1,3083.8,0.97261489]
[1768026265106,0.001,3084.2,3083.8,0.97261489]
[1768026265343,0.30389597,3084.1,3083.8,0.97261489]
[1768026265518,0.001,3084.2,3083.8,0.002]
[1768026265843,0.30389595,3084.1,3083.8,0.002]
[1768026266041,0.001,3084.2,3083.8,0.002]
[1768026266214,0.30389461,3084.1,3083.8,0.002]
[1768026266413,0.001,3084.2,3083.8,0.002]
[1768026266615,0.30389608,3084.1,3083.8,0.002]
[1768026266912,0.001,3084.2,3083.8,0.002]
[1768026267112,0.30389588,3084.1,3083.8,0.002]
[1768026267345,0.001,3084.2,3083.8,0.002]
[1768026267642,0.30389728,3084.1,3083.8,0.002]
[1768026267843,0.001,3084.2,3083.8,0.002]
[1768026268044,0.3038969,3084.1,3083.8,0.002]
[1768026268338,0.001,3084.2,3083.8,0.002]
[1768026268542,0.30389887,3084.1,3083.8,0.002]
[1768026268744,0.001,3084.2,3083.8,0.002]
[1768026269044,0.30389871,3084.1,3083.8,0.002]
[1768026269278,0.001,3084.2,3083.8,0.002]
[1768026269414,0.30390085,3084.1,3083.8,0.002]
[1768026269616,0.001,3084.2,3083.8,0.002]
[1768026269817,0.30390066,3084.1,3083.8,0.002]
[1768026270015,0.001,3084.2,3083.8,0.002]
[1768026270215,0.30390043,3084.1,3083.8,0.002]
[1768026270439,0.001,3084.2,3083.8,0.002]
[1768026270636,0.30390088,3084.1,3083.8,0.002]
[1768026270837,0.001,3084.2,3083.8,0.002]
[1768026271016,0.30390164,3084.1,3083.8,0.002]
[1768026271224,0.001,3084.2,3083.8,0.002]
[1768026271427,0.3039044,3084.1,3083.8,0.002]
[1768026271723,0.001,3084.2,3083.8,0.002]
[1768026272043,0.3039045,3084.1,3083.8,0.002]
[1768026272235,0.001,3084.2,3083.8,0.002]
[1768026272438,0.30390836,3084.1,3083.8,0.002]
[1768026272617,0.001,3084.2,3083.8,0.002]
[1768026272819,0.30390819,3084.1,3083.8,0.002]
[1768026273147,0.001,3083.9,3083.8,0.002]
[1768026277748,0.001,3084.2,3083.8,0.002]
[1768026277948,0.30392946,3084.1,3083.8,0.002]
[1768026278151,0.001,3084.2,3083.8,0.002]
[1768026278452,0.30393376,3084.1,3083.8,0.002]
[1768026278616,0.001,3084.2,3083.8,0.002]
[1768026278811,0.30393404,3084.1,3083.8,0.002]
[1768026279052,0.001,3084.2,3083.8,0.002]
[1768026279256,0.30393388,3084.1,3083.8,0.002]
[1768026279420,0.001,3084.2,3083.8,0.002]
[1768026279616,0.30394227,3084.1,3083.8,0.002]
[1768026279914,0.001,3084.2,3083.8,0.002]
[1768026280111,0.3039423,3084.1,3083.8,0.002]
[1768026280316,0.001,3084.2,3083.8,0.002]
[1768026280522,0.30395319,3084.1,3083.8,0.9915759]
[1768026280853,0.001,3084.2,3083.8,0.9915759]
[1768026281157,0.30395872,3084.1,3083.8,0.9915759]
[1768026281356,0.001,3084.2,3083.8,0.002]
[1768026281544,0.30393771,3084.1,3083.8,0.002]
[1768026281745,0.001,3084.2,3083.8,0.002]
[1768026282046,0.30393771,3084.1,3083.8,0.002]
[1768026282347,0.001,3084.2,3083.8,0.002]
[1768026282547,0.30392495,3084.1,3083.8,0.002]
[1768026282857,0.001,3084.2,3083.8,0.002]
[1768026283061,0.303906,3084.1,3083.8,0.002]
[1768026283360,0.001,3084.2,3083.8,0.002]
[1768026283658,0.30389651,3084.1,3083.8,0.002]
[1768026283957,0.001,3084.2,3083.8,0.002]
[1768026284152,0.30389711,3084.1,3083.8,0.002]
[1768026284326,0.001,3084.2,3083.8,0.002]
[1768026284526,0.30388903,3084.1,3083.8,0.002]
[1768026284726,0.001,3084.2,3083.8,0.002]
[1768026285027,0.30388925,3084.1,3083.8,0.002]
[1768026285228,0.001,3084.2,3083.8,0.002]
[1768026285429,0.30388165,3084.1,3083.8,0.002]
[1768026285653,0.001,3083.9,3083.8,0.002]
[1768026285853,0.94501101,3084.1,3083.8,0.002]
[1768026286871,0.001,3084.2,3083.8,0.002]
[1768026287032,0.30387509,3084.1,3083.8,0.002]
[1768026287235,0.001,3084.2,3083.8,0.002]
[1768026287533,0.30387076,3084.1,3083.8,0.002]
[1768026287733,0.001,3084.2,3083.8,0.002]
[1768026287970,1.24888193,3084.1,3083.8,0.002]
[1768026288189,0.94501101,3084.1,3083.8,0.002]
[1768026291276,0.001,3084.2,3083.8,0.95977175]
[1768026291650,0.001,3084.2,3083.8,0.002]
[1768026294685,0.99286993,3084.2,3083.8,0.002]
[1768026298064,0.83183934,3084.2,3083.8,0.002]
[1768026298284,0.83084033,3084.2,3083.8,0.002]
[1768026300787,0.99186993,3084.4,3083.8,0.002]
[1768026300987,0.30382323,3084.3,3083.8,0.002]